[Event "Titled Tuesday Blitz July 20 2021"]
[White "Tronenkovs, Valdis"]
[Black "Terry, Renato"]
[WhiteFideId "11601558"]
[BlackFideId "3803457"]
[WhiteElo "2232"]
[BlackElo "2581"]
[Result "0-1"]
[Round "03"]
[TimeControl "180+1"]
[Date "2021.07.21"]
[WhiteClock "0:00:01"]
[BlackClock "0:00:01"]

1. e4 {[%clk 0:03:00]}  e6 {[%clk 0:02:58]} 2. d4 {[%clk 0:03:00]}  d5 {[%clk 0:02:58]} 3. Nc3 {[%clk 0:03:01]}  Nf6 {[%clk 0:02:58]} 4. Bg5 {[%clk 0:02:58]}  Bb4 {[%clk 0:02:57]} 5. e5 {[%clk 0:02:57]}  h6 {[%clk 0:02:58]} 6. exf6 {[%clk 0:02:58]}  hxg5 {[%clk 0:02:57]} 7. fxg7 {[%clk 0:02:58]}  Rg8 {[%clk 0:02:58]} 8. Qd3 {[%clk 0:02:57]}  Qf6 {[%clk 0:02:55]} 9. a3 {[%clk 0:02:57]}  Ba5 {[%clk 0:02:50]} 10. Qe3 {[%clk 0:02:20]}  a6 {[%clk 0:02:36]} 11. b4 {[%clk 0:01:24]}  Bb6 {[%clk 0:02:34]} 12. Nxd5 {[%clk 0:01:24]}  Qxg7 {[%clk 0:02:14]} 13. Nf3 {[%clk 0:01:03]}  Nc6 {[%clk 0:02:10]} 14. O-O-O {[%clk 0:00:57]}  Bd7 {[%clk 0:02:04]} 15. Bc4 {[%clk 0:00:51]}  O-O-O {[%clk 0:01:59]} 16. Nxb6+ {[%clk 0:00:51]}  cxb6 {[%clk 0:02:00]} 17. Kb1 {[%clk 0:00:42]}  b5 {[%clk 0:01:42]} 18. Bb3 {[%clk 0:00:41]}  Ne7 {[%clk 0:01:39]} 19. d5 {[%clk 0:00:32]}  Nxd5 {[%clk 0:01:16]} 20. Bxd5 {[%clk 0:00:26]}  exd5 {[%clk 0:01:17]} 21. Rxd5 {[%clk 0:00:18]}  Bc6 {[%clk 0:01:18]} 22. Rxg5 {[%clk 0:00:15]}  Qf6 {[%clk 0:01:17]} 23. Rxg8 {[%clk 0:00:14]}  Rxg8 {[%clk 0:01:18]} 24. Ne5 {[%clk 0:00:05]}  Rxg2 {[%clk 0:00:36]} 25. Nxc6 {[%clk 0:00:04]}  Qxc6 {[%clk 0:00:37]} 26. Re1 {[%clk 0:00:04]}  Rxh2 {[%clk 0:00:32]} 27. Qe7 {[%clk 0:00:03]}  Rxf2 {[%clk 0:00:10]} 28. Qf8+ {[%clk 0:00:03]}  Kc7 {[%clk 0:00:11]} 29. Qe7+ {[%clk 0:00:04]}  Kb8 {[%clk 0:00:06]} 30. Qd8+ {[%clk 0:00:04]}  Ka7 {[%clk 0:00:06]} 31. Qd4+ {[%clk 0:00:04]}  Qb6 {[%clk 0:00:06]} 32. Qd7 {[%clk 0:00:03]}  Rg2 {[%clk 0:00:03]} 33. Qxf7 {[%clk 0:00:02]}  Qd4 {[%clk 0:00:02]} 34. Qb3 {[%clk 0:00:01]}  Rd2 {[%clk 0:00:01]} 0-1


[Site "https://www.chess.com"]

[Event "Titled Tuesday Blitz July 20 2021"]
[White "Tsaruk, Maksim"]
[Black "Sarana, Alexey"]
[WhiteFideId "13511173"]
[BlackFideId "24133795"]
[WhiteElo "2184"]
[BlackElo "2646"]
[Result "1/2-1/2"]
[Round "03"]
[TimeControl "180+1"]
[Date "2021.07.20"]
[WhiteClock "0:00:11"]
[BlackClock "0:00:19"]

1. e4 {[%clk 0:02:56]}  e5 {[%clk 0:02:57]} 2. Nf3 {[%clk 0:02:56]}  Nc6 {[%clk 0:02:58]} 3. Bb5 {[%clk 0:02:56]}  a6 {[%clk 0:02:58]} 4. Ba4 {[%clk 0:02:56]}  Nf6 {[%clk 0:02:58]} 5. O-O {[%clk 0:02:56]}  Nxe4 {[%clk 0:02:58]} 6. d4 {[%clk 0:02:55]}  b5 {[%clk 0:02:58]} 7. Bb3 {[%clk 0:02:55]}  d5 {[%clk 0:02:58]} 8. dxe5 {[%clk 0:02:56]}  Be6 {[%clk 0:02:58]} 9. c3 {[%clk 0:02:56]}  Bc5 {[%clk 0:02:56]} 10. Nbd2 {[%clk 0:02:57]}  O-O {[%clk 0:02:55]} 11. Bc2 {[%clk 0:02:56]}  Nxf2 {[%clk 0:02:55]} 12. Rxf2 {[%clk 0:02:56]}  Bxf2+ {[%clk 0:02:56]} 13. Kxf2 {[%clk 0:02:55]}  f6 {[%clk 0:02:56]} 14. exf6 {[%clk 0:02:54]}  Qxf6 {[%clk 0:02:57]} 15. Nf1 {[%clk 0:02:48]}  Ne5 {[%clk 0:02:57]} 16. Be3 {[%clk 0:02:39]}  Nxf3 {[%clk 0:02:56]} 17. gxf3 {[%clk 0:02:38]}  Rae8 {[%clk 0:02:56]} 18. Bc5 {[%clk 0:02:38]}  Rf7 {[%clk 0:02:55]} 19. Kg1 {[%clk 0:02:38]}  Bh3 {[%clk 0:02:51]} 20. Qxd5 {[%clk 0:02:18]}  Qxf3 {[%clk 0:02:45]} 21. Bb3 {[%clk 0:01:44]}  Be6 {[%clk 0:02:39]} 22. Qxe6 {[%clk 0:01:24]}  Rxe6 {[%clk 0:02:39]} 23. Bxe6 {[%clk 0:01:25]}  Qe2 {[%clk 0:02:36]} 24. Bxf7+ {[%clk 0:01:21]}  Kxf7 {[%clk 0:02:37]} 25. b4 {[%clk 0:01:17]}  h5 {[%clk 0:02:35]} 26. Bf2 {[%clk 0:01:07]}  Qb2 {[%clk 0:02:32]} 27. Re1 {[%clk 0:01:00]}  Qxc3 {[%clk 0:02:31]} 28. Re4 {[%clk 0:00:30]}  Qb2 {[%clk 0:02:23]} 29. Bc5 {[%clk 0:00:28]}  Qxa2 {[%clk 0:02:16]} 30. Ng3 {[%clk 0:00:22]}  Qd5 {[%clk 0:02:08]} 31. Re7+ {[%clk 0:00:22]}  Kg8 {[%clk 0:02:08]} 32. Ne4 {[%clk 0:00:16]}  h4 {[%clk 0:02:03]} 33. Kf2 {[%clk 0:00:16]}  Qf5+ {[%clk 0:02:02]} 34. Ke3 {[%clk 0:00:14]}  Qh3+ {[%clk 0:01:45]} 35. Kf4 {[%clk 0:00:14]}  Qxh2+ {[%clk 0:01:45]} 36. Kf5 {[%clk 0:00:15]}  Qh3+ {[%clk 0:01:41]} 37. Kg6 {[%clk 0:00:13]}  Qg2+ {[%clk 0:01:35]} 38. Kf5 {[%clk 0:00:02]}  Qc2 {[%clk 0:00:39]} 39. Re8+ {[%clk 0:00:02]}  Kh7 {[%clk 0:00:38]} 40. Kf4 {[%clk 0:00:01]}  Qg2 {[%clk 0:00:33]} 41. Ng5+ {[%clk 0:00:01]}  Kg6 {[%clk 0:00:33]} 42. Nf3 {[%clk 0:00:02]}  Kh7 {[%clk 0:00:19]} 43. Ng5+ {[%clk 0:00:02]}  Kh6 {[%clk 0:00:20]} 44. Nf3 {[%clk 0:00:03]}  g5+ {[%clk 0:00:16]} 45. Ke3 {[%clk 0:00:04]}  h3 {[%clk 0:00:14]} 46. Rh8+ {[%clk 0:00:03]}  Kg6 {[%clk 0:00:15]} 47. Nh4+ {[%clk 0:00:02]}  gxh4 {[%clk 0:00:15]} 48. Rg8+ {[%clk 0:00:02]}  Kf5 {[%clk 0:00:15]} 49. Rxg2 {[%clk 0:00:03]}  hxg2 {[%clk 0:00:15]} 50. Kf2 {[%clk 0:00:04]}  h3 {[%clk 0:00:16]} 51. Kg3 {[%clk 0:00:05]}  Ke4 {[%clk 0:00:11]} 52. Kxh3 {[%clk 0:00:05]}  Kd5 {[%clk 0:00:11]} 53. Kxg2 {[%clk 0:00:04]}  a5 {[%clk 0:00:12]} 54. Bf8 {[%clk 0:00:03]}  a4 {[%clk 0:00:12]} 55. Kf3 {[%clk 0:00:03]}  a3 {[%clk 0:00:11]} 56. Ke3 {[%clk 0:00:03]}  Kc4 {[%clk 0:00:12]} 57. Kd2 {[%clk 0:00:03]}  Kb3 {[%clk 0:00:10]} 58. Kc1 {[%clk 0:00:03]}  a2 {[%clk 0:00:10]} 59. Bg7 {[%clk 0:00:04]}  c6 {[%clk 0:00:10]} 60. Bf6 {[%clk 0:00:04]}  Ka3 {[%clk 0:00:11]} 61. Be5 {[%clk 0:00:03]}  Kb3 {[%clk 0:00:10]} 62. Bf6 {[%clk 0:00:03]}  Kxb4 {[%clk 0:00:09]} 63. Kb2 {[%clk 0:00:04]}  c5 {[%clk 0:00:09]} 64. Kxa2 {[%clk 0:00:05]}  Kc4 {[%clk 0:00:10]} 65. Kb2 {[%clk 0:00:05]}  Kd3 {[%clk 0:00:10]} 66. Be7 {[%clk 0:00:04]}  Kd4 {[%clk 0:00:11]} 67. Bxc5+ {[%clk 0:00:04]}  Kxc5 {[%clk 0:00:11]} 68. Kc3 {[%clk 0:00:05]}  b4+ {[%clk 0:00:12]} 69. Kb3 {[%clk 0:00:06]}  Kb5 {[%clk 0:00:12]} 70. Kb2 {[%clk 0:00:07]}  Kc4 {[%clk 0:00:13]} 71. Kc2 {[%clk 0:00:08]}  b3+ {[%clk 0:00:14]} 72. Kb2 {[%clk 0:00:08]}  Kb4 {[%clk 0:00:15]} 73. Kb1 {[%clk 0:00:09]}  Ka4 {[%clk 0:00:15]} 74. Kb2 {[%clk 0:00:09]}  Kb4 {[%clk 0:00:16]} 75. Kb1 {[%clk 0:00:10]}  Ka3 {[%clk 0:00:17]} 76. Ka1 {[%clk 0:00:10]}  b2+ {[%clk 0:00:18]} 77. Kb1 {[%clk 0:00:11]}  Kb3 {[%clk 0:00:19]} 1/2-1/2


[Site "https://www.chess.com"]

[Event "Titled Tuesday Blitz July 20 2021"]
[White "ValeriyGrinev"]
[Black "Pein, Jonathan"]
[BlackFideId "417092"]
[WhiteElo "2625"]
[BlackElo "2167"]
[Result "1/2-1/2"]
[Round "03"]
[TimeControl "180+1"]
[Date "2021.07.21"]
[WhiteClock "0:00:24"]
[BlackClock "0:00:10"]

1. d4 {[%clk 0:03:00]}  d6 {[%clk 0:02:54]} 2. c4 {[%clk 0:02:58]}  Nf6 {[%clk 0:02:55]} 3. Nc3 {[%clk 0:02:59]}  g6 {[%clk 0:02:55]} 4. e4 {[%clk 0:02:59]}  Bg7 {[%clk 0:02:56]} 5. Be2 {[%clk 0:02:59]}  O-O {[%clk 0:02:56]} 6. Be3 {[%clk 0:02:59]}  e5 {[%clk 0:02:52]} 7. d5 {[%clk 0:03:00]}  a5 {[%clk 0:02:51]} 8. g4 {[%clk 0:02:59]}  Na6 {[%clk 0:02:51]} 9. h4 {[%clk 0:02:55]}  Nd7 {[%clk 0:02:48]} 10. h5 {[%clk 0:02:52]}  Nac5 {[%clk 0:02:43]} 11. f3 {[%clk 0:02:49]}  a4 {[%clk 0:02:42]} 12. Qd2 {[%clk 0:02:49]}  Qe7 {[%clk 0:02:26]} 13. Bh6 {[%clk 0:02:35]}  Bxh6 {[%clk 0:02:16]} 14. Qxh6 {[%clk 0:02:36]}  g5 {[%clk 0:02:16]} 15. Nb5 {[%clk 0:02:33]}  c6 {[%clk 0:01:44]} 16. Nxd6 {[%clk 0:02:28]}  cxd5 {[%clk 0:01:28]} 17. cxd5 {[%clk 0:02:14]}  f6 {[%clk 0:01:24]} 18. Nf5 {[%clk 0:02:11]}  Qf7 {[%clk 0:01:25]} 19. Nh3 {[%clk 0:02:06]}  Nb8 {[%clk 0:01:02]} 20. Rc1 {[%clk 0:01:55]}  Bxf5 {[%clk 0:00:59]} 21. gxf5 {[%clk 0:01:55]}  Nbd7 {[%clk 0:00:50]} 22. Rg1 {[%clk 0:01:54]}  Kh8 {[%clk 0:00:49]} 23. Kf2 {[%clk 0:01:36]}  Rac8 {[%clk 0:00:41]} 24. Kg3 {[%clk 0:01:25]}  b6 {[%clk 0:00:16]} 25. Nf2 {[%clk 0:01:22]}  Nb7 {[%clk 0:00:10]} 26. Bb5 {[%clk 0:01:20]}  Nd6 {[%clk 0:00:09]} 27. Rxc8 {[%clk 0:01:17]}  Nxc8 {[%clk 0:00:05]} 28. Rc1 {[%clk 0:01:16]}  Nd6 {[%clk 0:00:05]} 29. Bxa4 {[%clk 0:01:16]}  Qe7 {[%clk 0:00:03]} 30. Rc7 {[%clk 0:01:14]}  Nf7 {[%clk 0:00:03]} 31. Rxd7 {[%clk 0:01:05]}  Qxd7 {[%clk 0:00:03]} 32. Bxd7 {[%clk 0:01:06]}  Nxh6 {[%clk 0:00:04]} 33. Nd3 {[%clk 0:01:05]}  Ra8 {[%clk 0:00:04]} 34. a3 {[%clk 0:01:05]}  Nf7 {[%clk 0:00:03]} 35. Nb4 {[%clk 0:01:04]}  Nd6 {[%clk 0:00:03]} 36. Bc6 {[%clk 0:01:03]}  Rb8 {[%clk 0:00:03]} 37. Na6 {[%clk 0:01:03]}  Rd8 {[%clk 0:00:03]} 38. b3 {[%clk 0:01:02]}  Kg7 {[%clk 0:00:03]} 39. a4 {[%clk 0:01:03]}  Kf7 {[%clk 0:00:03]} 40. b4 {[%clk 0:00:57]}  g4 {[%clk 0:00:04]} 41. Nc7 {[%clk 0:00:51]}  gxf3 {[%clk 0:00:03]} 42. Kxf3 {[%clk 0:00:52]}  Rg8 {[%clk 0:00:03]} 43. a5 {[%clk 0:00:52]}  bxa5 {[%clk 0:00:04]} 44. bxa5 {[%clk 0:00:53]}  Rg1 {[%clk 0:00:04]} 45. a6 {[%clk 0:00:48]}  Rf1+ {[%clk 0:00:04]} 46. Ke3 {[%clk 0:00:47]}  Ra1 {[%clk 0:00:05]} 47. Kd3 {[%clk 0:00:47]}  Ra3+ {[%clk 0:00:05]} 48. Kc2 {[%clk 0:00:46]}  Nxe4 {[%clk 0:00:06]} 49. Bb7 {[%clk 0:00:46]}  Nc5 {[%clk 0:00:05]} 50. Nb5 {[%clk 0:00:45]}  Ra5 {[%clk 0:00:04]} 51. d6 {[%clk 0:00:39]}  Nxa6 {[%clk 0:00:02]} 52. Bd5+ {[%clk 0:00:38]}  Ke8 {[%clk 0:00:02]} 53. Bc6+ {[%clk 0:00:39]}  Kd8 {[%clk 0:00:02]} 54. Kb3 {[%clk 0:00:35]}  Nc5+ {[%clk 0:00:02]} 55. Kb4 {[%clk 0:00:35]}  Rxb5+ {[%clk 0:00:02]} 56. Kxb5 {[%clk 0:00:35]}  Nd7 {[%clk 0:00:03]} 57. Kc4 {[%clk 0:00:33]}  h6 {[%clk 0:00:03]} 58. Kd5 {[%clk 0:00:33]}  Nb8 {[%clk 0:00:03]} 59. Bb5 {[%clk 0:00:33]}  Nd7 {[%clk 0:00:03]} 60. Ke6 {[%clk 0:00:33]}  Nc5+ {[%clk 0:00:03]} 61. Kxf6 {[%clk 0:00:34]}  e4 {[%clk 0:00:03]} 62. Ke5 {[%clk 0:00:34]}  e3 {[%clk 0:00:04]} 63. Kd4 {[%clk 0:00:32]}  Nb7 {[%clk 0:00:04]} 64. d7 {[%clk 0:00:31]}  Nd6 {[%clk 0:00:05]} 65. Ba6 {[%clk 0:00:19]}  Nxf5+ {[%clk 0:00:05]} 66. Ke4 {[%clk 0:00:19]}  e2 {[%clk 0:00:05]} 67. Bxe2 {[%clk 0:00:18]}  Ng3+ {[%clk 0:00:06]} 68. Kf3 {[%clk 0:00:19]}  Nxe2 {[%clk 0:00:06]} 69. Kxe2 {[%clk 0:00:19]}  Kxd7 {[%clk 0:00:07]} 70. Kf3 {[%clk 0:00:20]}  Ke6 {[%clk 0:00:08]} 71. Ke4 {[%clk 0:00:20]}  Kf6 {[%clk 0:00:08]} 72. Kf4 {[%clk 0:00:21]}  Ke6 {[%clk 0:00:09]} 73. Ke4 {[%clk 0:00:22]}  Kf6 {[%clk 0:00:10]} 74. Kf4 {[%clk 0:00:23]}  Ke6 {[%clk 0:00:10]} 75. Ke4 {[%clk 0:00:24]} 1/2-1/2


[Site "https://www.chess.com"]

[Event "Titled Tuesday Blitz July 20 2021"]
[White "Yanchenko, Roman"]
[Black "Taichman, Ori"]
[WhiteFideId "4137329"]
[BlackFideId "2804069"]
[WhiteElo "2514"]
[BlackElo "2227"]
[Result "0-1"]
[Round "03"]
[TimeControl "180+1"]
[Date "2021.07.21"]
[WhiteClock "0:00:19"]
[BlackClock "0:00:14"]

1. d4 {[%clk 0:03:00]}  Nf6 {[%clk 0:02:59]} 2. c4 {[%clk 0:03:01]}  g6 {[%clk 0:02:59]} 3. Nf3 {[%clk 0:03:01]}  Bg7 {[%clk 0:03:00]} 4. Nc3 {[%clk 0:03:02]}  O-O {[%clk 0:03:00]} 5. Bf4 {[%clk 0:03:03]}  d6 {[%clk 0:03:00]} 6. e3 {[%clk 0:03:03]}  c5 {[%clk 0:03:00]} 7. Be2 {[%clk 0:03:03]}  Nc6 {[%clk 0:02:56]} 8. O-O {[%clk 0:03:03]}  Bg4 {[%clk 0:02:55]} 9. h3 {[%clk 0:03:03]}  Bxf3 {[%clk 0:02:55]} 10. Bxf3 {[%clk 0:03:04]}  Nd7 {[%clk 0:02:46]} 11. Ne2 {[%clk 0:02:48]}  cxd4 {[%clk 0:02:12]} 12. Nxd4 {[%clk 0:02:47]}  e5 {[%clk 0:01:43]} 13. Nxc6 {[%clk 0:02:47]}  bxc6 {[%clk 0:01:42]} 14. Bg3 {[%clk 0:02:42]}  Qc7 {[%clk 0:01:42]} 15. Qa4 {[%clk 0:02:41]}  Rac8 {[%clk 0:01:24]} 16. Rad1 {[%clk 0:02:41]}  f5 {[%clk 0:01:19]} 17. b4 {[%clk 0:02:36]}  e4 {[%clk 0:01:18]} 18. Be2 {[%clk 0:02:36]}  Ne5 {[%clk 0:01:14]} 19. b5 {[%clk 0:02:21]}  cxb5 {[%clk 0:00:58]} 20. Qxb5 {[%clk 0:02:21]}  Qc6 {[%clk 0:00:52]} 21. Qd5+ {[%clk 0:02:06]}  Qxd5 {[%clk 0:00:45]} 22. Rxd5 {[%clk 0:02:07]}  Nxc4 {[%clk 0:00:45]} 23. Rfd1 {[%clk 0:01:36]}  Rfd8 {[%clk 0:00:30]} 24. Bxc4 {[%clk 0:01:31]}  Rxc4 {[%clk 0:00:31]} 25. Rxd6 {[%clk 0:01:31]}  Rxd6 {[%clk 0:00:31]} 26. Rxd6 {[%clk 0:01:32]}  Rc1+ {[%clk 0:00:31]} 27. Kh2 {[%clk 0:01:32]}  a5 {[%clk 0:00:28]} 28. Rd8+ {[%clk 0:01:28]}  Kf7 {[%clk 0:00:28]} 29. Rd7+ {[%clk 0:01:28]}  Kg8 {[%clk 0:00:28]} 30. Ra7 {[%clk 0:01:26]}  Bc3 {[%clk 0:00:28]} 31. Rc7 {[%clk 0:01:22]}  Bd2 {[%clk 0:00:25]} 32. Rd7 {[%clk 0:01:05]}  Rc2 {[%clk 0:00:24]} 33. a4 {[%clk 0:01:04]}  Be1 {[%clk 0:00:23]} 34. Be5 {[%clk 0:00:48]}  Bxf2 {[%clk 0:00:22]} 35. Bd4 {[%clk 0:00:47]}  Ra2 {[%clk 0:00:21]} 36. Rg7+ {[%clk 0:00:46]}  Kf8 {[%clk 0:00:21]} 37. Rxh7 {[%clk 0:00:44]}  Rxa4 {[%clk 0:00:22]} 38. h4 {[%clk 0:00:41]}  f4 {[%clk 0:00:14]} 39. Bc5+ {[%clk 0:00:29]}  Kg8 {[%clk 0:00:14]} 40. Rb7 {[%clk 0:00:23]}  fxe3 {[%clk 0:00:13]} 41. Rb2 {[%clk 0:00:23]}  Bxh4 {[%clk 0:00:12]} 42. Bxe3 {[%clk 0:00:22]}  Bf6 {[%clk 0:00:12]} 43. Rb6 {[%clk 0:00:21]}  Be5+ {[%clk 0:00:12]} 44. Kg1 {[%clk 0:00:18]}  Kf7 {[%clk 0:00:11]} 45. Rb5 {[%clk 0:00:18]}  Ke6 {[%clk 0:00:10]} 46. Kf2 {[%clk 0:00:18]}  Ra2+ {[%clk 0:00:11]} 47. Kf1 {[%clk 0:00:18]}  a4 {[%clk 0:00:11]} 48. Rb6+ {[%clk 0:00:18]}  Kf5 {[%clk 0:00:12]} 49. Rb5 {[%clk 0:00:17]}  Kf6 {[%clk 0:00:10]} 50. Rb6+ {[%clk 0:00:17]}  Kf5 {[%clk 0:00:10]} 51. Rb5 {[%clk 0:00:17]}  Ke6 {[%clk 0:00:10]} 52. Rb6+ {[%clk 0:00:17]}  Kd5 {[%clk 0:00:11]} 53. Rb5+ {[%clk 0:00:17]}  Kd6 {[%clk 0:00:11]} 54. Rb6+ {[%clk 0:00:17]}  Kc7 {[%clk 0:00:11]} 55. Rxg6 {[%clk 0:00:18]}  Ra1+ {[%clk 0:00:12]} 56. Ke2 {[%clk 0:00:18]}  a3 {[%clk 0:00:12]} 57. Re6 {[%clk 0:00:18]}  Ra2+ {[%clk 0:00:12]} 58. Kf1 {[%clk 0:00:18]}  Ra1+ {[%clk 0:00:12]} 59. Ke2 {[%clk 0:00:18]}  a2 {[%clk 0:00:13]} 60. Rxe5 {[%clk 0:00:18]}  Re1+ {[%clk 0:00:13]} 61. Kf2 {[%clk 0:00:18]}  a1=Q {[%clk 0:00:14]} 62. Rc5+ {[%clk 0:00:18]}  Kd6 {[%clk 0:00:15]} 63. Rc2 {[%clk 0:00:18]}  Rf1+ {[%clk 0:00:15]} 64. Kg3 {[%clk 0:00:18]}  Qe1+ {[%clk 0:00:15]} 65. Kh3 {[%clk 0:00:18]}  Qxe3+ {[%clk 0:00:15]} 66. g3 {[%clk 0:00:19]}  Rg1 {[%clk 0:00:14]} 0-1


[Site "https://www.chess.com"]

[Event "Titled Tuesday Blitz July 20 2021"]
[White "Ahmadzada, Ahmad"]
[Black "Gontcharov, Vladislav"]
[WhiteFideId "13413007"]
[BlackFideId "4123492"]
[WhiteElo "2226"]
[BlackElo "2503"]
[Result "1-0"]
[Round "04"]
[TimeControl "180+1"]
[Date "2021.07.21"]
[WhiteClock "0:01:40"]
[BlackClock "0:00:09"]

1. Nf3 {[%clk 0:03:00]}  Nf6 {[%clk 0:02:46]} 2. g3 {[%clk 0:03:01]}  g6 {[%clk 0:02:43]} 3. Bg2 {[%clk 0:03:01]}  Bg7 {[%clk 0:02:41]} 4. O-O {[%clk 0:03:02]}  O-O {[%clk 0:02:39]} 5. d3 {[%clk 0:03:02]}  c5 {[%clk 0:02:38]} 6. e4 {[%clk 0:02:59]}  Nc6 {[%clk 0:02:37]} 7. Re1 {[%clk 0:02:58]}  d6 {[%clk 0:02:37]} 8. e5 {[%clk 0:02:56]}  dxe5 {[%clk 0:02:26]} 9. Nxe5 {[%clk 0:02:57]}  Nxe5 {[%clk 0:02:26]} 10. Rxe5 {[%clk 0:02:58]}  Nd7 {[%clk 0:02:25]} 11. Re1 {[%clk 0:02:58]}  e5 {[%clk 0:02:24]} 12. Nc3 {[%clk 0:02:58]}  Rb8 {[%clk 0:02:23]} 13. Be3 {[%clk 0:02:57]}  b6 {[%clk 0:02:21]} 14. a4 {[%clk 0:02:56]}  h6 {[%clk 0:02:18]} 15. h4 {[%clk 0:02:53]}  Bb7 {[%clk 0:02:17]} 16. Bxb7 {[%clk 0:02:52]}  Rxb7 {[%clk 0:02:17]} 17. Qf3 {[%clk 0:02:51]}  Rb8 {[%clk 0:02:12]} 18. h5 {[%clk 0:02:51]}  Nf6 {[%clk 0:01:51]} 19. hxg6 {[%clk 0:02:48]}  fxg6 {[%clk 0:01:50]} 20. Kg2 {[%clk 0:02:45]}  g5 {[%clk 0:01:46]} 21. Qc6 {[%clk 0:02:43]}  Qd7 {[%clk 0:01:30]} 22. Qxd7 {[%clk 0:02:41]}  Nxd7 {[%clk 0:01:31]} 23. Ne4 {[%clk 0:02:41]}  Nf6 {[%clk 0:01:16]} 24. b3 {[%clk 0:02:40]}  Nd5 {[%clk 0:01:14]} 25. a5 {[%clk 0:02:38]}  Nb4 {[%clk 0:01:01]} 26. Re2 {[%clk 0:02:33]}  Ra8 {[%clk 0:00:57]} 27. Bc1 {[%clk 0:02:27]}  Rfd8 {[%clk 0:00:52]} 28. Ba3 {[%clk 0:02:23]}  Nc6 {[%clk 0:00:52]} 29. Bb2 {[%clk 0:02:18]}  Nxa5 {[%clk 0:00:29]} 30. Nxc5 {[%clk 0:02:17]}  Re8 {[%clk 0:00:29]} 31. Na6 {[%clk 0:02:03]}  Rac8 {[%clk 0:00:23]} 32. Nb4 {[%clk 0:02:02]}  Kf7 {[%clk 0:00:15]} 33. Nd5 {[%clk 0:02:00]}  Red8 {[%clk 0:00:12]} 34. Ne3 {[%clk 0:01:58]}  Nc6 {[%clk 0:00:12]} 35. Ng4 {[%clk 0:01:53]}  e4 {[%clk 0:00:11]} 36. Bxg7 {[%clk 0:01:47]}  exd3 {[%clk 0:00:11]} 37. cxd3 {[%clk 0:01:40]}  Kxg7 {[%clk 0:00:11]} 38. Re6 {[%clk 0:01:40]}  h5 {[%clk 0:00:09]} 39. Ne3 {[%clk 0:01:40]} 1-0


[Site "https://www.chess.com"]

[Event "Titled Tuesday Blitz July 20 2021"]
[White "Bartel, Michal"]
[Black "Siva Mahadevan"]
[WhiteFideId "1119257"]
[BlackFideId "25043153"]
[WhiteElo "2271"]
[BlackElo "2203"]
[Result "0-1"]
[Round "04"]
[TimeControl "180+1"]
[Date "2021.07.20"]
[WhiteClock "0:01:18"]
[BlackClock "0:00:17"]

1. e4 {[%clk 0:03:00]}  c5 {[%clk 0:03:00]} 2. Ne2 {[%clk 0:02:56]}  Nc6 {[%clk 0:02:59]} 3. g3 {[%clk 0:02:57]}  g6 {[%clk 0:02:59]} 4. Bg2 {[%clk 0:02:57]}  Bg7 {[%clk 0:02:59]} 5. c3 {[%clk 0:02:58]}  e5 {[%clk 0:02:59]} 6. d3 {[%clk 0:02:57]}  Nge7 {[%clk 0:03:00]} 7. Be3 {[%clk 0:02:58]}  d6 {[%clk 0:02:55]} 8. Nd2 {[%clk 0:02:57]}  O-O {[%clk 0:02:55]} 9. f4 {[%clk 0:02:57]}  f5 {[%clk 0:02:44]} 10. O-O {[%clk 0:02:58]}  Be6 {[%clk 0:02:43]} 11. Nf3 {[%clk 0:02:58]}  Qd7 {[%clk 0:02:36]} 12. Ng5 {[%clk 0:02:57]}  Rad8 {[%clk 0:02:34]} 13. Nxe6 {[%clk 0:02:56]}  Qxe6 {[%clk 0:02:35]} 14. Qb3 {[%clk 0:02:53]}  Qxb3 {[%clk 0:02:22]} 15. axb3 {[%clk 0:02:53]}  b6 {[%clk 0:02:22]} 16. exf5 {[%clk 0:02:42]}  gxf5 {[%clk 0:02:19]} 17. fxe5 {[%clk 0:02:36]}  dxe5 {[%clk 0:02:19]} 18. Bg5 {[%clk 0:02:36]}  Rxd3 {[%clk 0:02:14]} 19. Bxe7 {[%clk 0:02:35]}  Nxe7 {[%clk 0:02:15]} 20. Rxa7 {[%clk 0:02:35]}  Rf7 {[%clk 0:02:04]} 21. c4 {[%clk 0:02:31]}  Rxb3 {[%clk 0:01:55]} 22. Nc3 {[%clk 0:02:31]}  e4 {[%clk 0:01:54]} 23. Nb5 {[%clk 0:02:18]}  Rxb2 {[%clk 0:01:46]} 24. Nd6 {[%clk 0:02:17]}  Rf6 {[%clk 0:01:38]} 25. Ne8 {[%clk 0:02:11]}  Re6 {[%clk 0:01:32]} 26. Nxg7 {[%clk 0:02:10]}  Kxg7 {[%clk 0:01:33]} 27. Rxf5 {[%clk 0:02:10]}  e3 {[%clk 0:01:07]} 28. Rf1 {[%clk 0:02:00]}  Kg6 {[%clk 0:00:57]} 29. h4 {[%clk 0:01:44]}  h5 {[%clk 0:00:46]} 30. Bf3 {[%clk 0:01:40]}  Nf5 {[%clk 0:00:29]} 31. g4 {[%clk 0:01:41]}  Nxh4 {[%clk 0:00:24]} 32. gxh5+ {[%clk 0:01:41]}  Kh6 {[%clk 0:00:24]} 33. Bd5 {[%clk 0:01:37]}  Re5 {[%clk 0:00:20]} 34. Raf7 {[%clk 0:01:27]}  Rg5+ {[%clk 0:00:17]} 35. Kh1 {[%clk 0:01:25]}  Rxh5 {[%clk 0:00:17]} 36. Be4 {[%clk 0:01:18]}  Nf3# {[%clk 0:00:17]} 0-1


[Site "https://www.chess.com"]

[Event "Titled Tuesday Blitz July 20 2021"]
[White "Batsuren, Dambasuren"]
[Black "Astafurov, Arseniy"]
[WhiteFideId "4902920"]
[BlackFideId "24175218"]
[WhiteElo "2371"]
[BlackElo "2163"]
[Result "1-0"]
[Round "04"]
[TimeControl "180+1"]
[Date "2021.07.21"]
[WhiteClock "0:01:28"]
[BlackClock "0:00:12"]

1. c4 {[%clk 0:03:00]}  c6 {[%clk 0:02:59]} 2. e4 {[%clk 0:03:00]}  d5 {[%clk 0:02:59]} 3. exd5 {[%clk 0:03:01]}  cxd5 {[%clk 0:03:00]} 4. cxd5 {[%clk 0:03:02]}  Nf6 {[%clk 0:03:00]} 5. Bb5+ {[%clk 0:03:02]}  Nbd7 {[%clk 0:03:00]} 6. Nc3 {[%clk 0:03:02]}  g6 {[%clk 0:02:59]} 7. Nf3 {[%clk 0:03:01]}  Bg7 {[%clk 0:03:00]} 8. O-O {[%clk 0:03:01]}  O-O {[%clk 0:03:00]} 9. Re1 {[%clk 0:02:55]}  Nb6 {[%clk 0:02:57]} 10. d4 {[%clk 0:02:53]}  Nfxd5 {[%clk 0:02:55]} 11. h3 {[%clk 0:02:46]}  Bf5 {[%clk 0:02:49]} 12. Bg5 {[%clk 0:02:44]}  a6 {[%clk 0:02:42]} 13. Bf1 {[%clk 0:02:42]}  Rc8 {[%clk 0:02:42]} 14. Qb3 {[%clk 0:02:42]}  Qd6 {[%clk 0:02:08]} 15. Nxd5 {[%clk 0:02:27]}  Nxd5 {[%clk 0:02:07]} 16. Qxb7 {[%clk 0:02:28]}  Rb8 {[%clk 0:01:21]} 17. Bxe7 {[%clk 0:02:27]}  Nxe7 {[%clk 0:01:07]} 18. Qxe7 {[%clk 0:02:26]}  Rfd8 {[%clk 0:00:37]} 19. Qxd6 {[%clk 0:02:11]}  Rxd6 {[%clk 0:00:38]} 20. b3 {[%clk 0:02:12]}  a5 {[%clk 0:00:37]} 21. Rac1 {[%clk 0:02:09]}  Bxd4 {[%clk 0:00:28]} 22. Red1 {[%clk 0:01:41]}  Bc5 {[%clk 0:00:26]} 23. Bc4 {[%clk 0:01:32]}  Rxd1+ {[%clk 0:00:21]} 24. Rxd1 {[%clk 0:01:33]}  Kg7 {[%clk 0:00:19]} 25. g4 {[%clk 0:01:30]}  Be6 {[%clk 0:00:16]} 26. Bxe6 {[%clk 0:01:28]}  fxe6 {[%clk 0:00:17]} 27. Ng5 {[%clk 0:01:29]}  Kf6 {[%clk 0:00:12]} 28. Ne4+ {[%clk 0:01:28]} 1-0


[Site "https://www.chess.com"]